bitfinex/quotes_ETHUSD_20251117
["timestamp","ask_amount","ask_price","bid_price","bid_amount"]
[1763422067401,0.51888831,3032.7,3032.2,0.4677]
[1763422067900,0.51888831,3032.7,3032.6,0.4577]
[1763422068288,0.51888831,3032.7,3032.6,0.9254]
[1763422068487,0.51888831,3032.7,3032.6,0.4577]
[1763422068670,0.51888831,3032.7,3032.1,1.3841314]
[1763422068671,0.405504,3032.6,3032.1,1.3841314]
[1763422068871,0.405504,3032.6,3032.1,0.1967]
[1763422069397,0.405504,3032.6,3032.5,0.4577]
[1763422070525,0.69162411,3032.7,3032.5,0.4577]
[1763422070728,0.69162411,3032.7,3032.1,1.3841314]
[1763422070915,0.69162411,3032.7,3032.2,0.4677]
[1763422071113,0.69162411,3032.7,3032.6,0.4577]
[1763422071623,0.69162411,3032.7,3032.6,0.9254]
[1763422072336,0.69162411,3032.7,3032.6,0.4577]
[1763422072691,0.69162411,3032.7,3032.3,1.1874314]
[1763422072919,0.69162411,3032.7,3032.4,0.50067717]
[1763422073899,0.69162411,3032.7,3032.4,0.4677]
[1763422074493,1.09712811,3032.7,3032.6,0.4577]
[1763422075125,1.09712811,3032.7,3032.3,1.1874314]
[1763422075329,0.405504,3032.6,3032.0,1.1884314]
[1763422075504,0.405504,3032.6,3032.0,0.001]
[1763422076313,0.405504,3032.6,3032.0,1.1884314]
[1763422076509,0.405504,3032.6,3032.1,0.1967]
[1763422077095,0.69162411,3032.7,3032.1,0.1967]
[1763422077300,0.69162411,3032.7,3032.1,1.8518314]
[1763422077930,0.69162411,3032.7,3032.2,0.4677]
[1763422078449,0.1727358,3032.7,3032.6,0.4577]
[1763422078813,0.1727358,3032.7,3032.4,1.1874314]
[1763422079223,0.002,3032.8,3032.5,1.1874314]
[1763422079546,0.002,3032.8,3032.4,1.6551314]
[1763422080316,0.002,3032.8,3032.7,0.4577]
[1763422080512,0.002,3032.8,3032.7,0.49067391]
[1763422080815,0.002,3032.8,3032.7,1.1905352]
[1763422081321,0.002,3032.8,3032.4,1.1905352]
[1763422081517,0.002,3032.8,3032.3,1.1905352]
[1763422082215,0.002,3032.8,3032.1,1.1905352]
[1763422082415,0.002,3032.8,3032.0,1.1915352]
[1763422082827,0.002,3032.8,3032.1,0.1967]
[1763422083058,0.002,3032.8,3032.0,1.1915352]
[1763422083361,0.002,3032.8,3032.1,1.1905352]
[1763422083544,0.002,3032.8,3032.0,1.1915352]
[1763422084737,1.31249664,3032.4,3032.0,0.001]
[1763422084937,0.405504,3032.2,3032.0,0.001]
[1763422085451,0.90699264,3032.6,3032.0,0.001]
[1763422085452,0.405504,3032.5,3032.0,0.001]
[1763422095760,1.31249664,3032.6,3032.0,0.001]
[1763422098969,1.31249664,3032.2,3032.0,0.001]
[1763422099170,0.42445177,3032.1,3032.0,0.001]
[1763422099369,0.405504,3032.0,3031.7,0.001]
[1763422099557,8.07953991,3031.8,3031.7,0.001]
[1763422099759,18.28921673,3031.8,3031.7,0.001]
[1763422099964,3.895504,3031.5,3031.4,0.001]
[1763422100268,9.98359929,3031.5,3031.4,0.001]
[1763422100466,10.11623386,3031.5,3031.4,0.001]
[1763422100678,16.74540617,3031.5,3031.4,0.001]
[1763422100985,16.84540616,3031.5,3031.4,0.001]
[1763422101179,18.61283895,3031.5,3031.4,0.001]
[1763422101347,19.3332055,3031.5,3031.4,0.001]
[1763422101547,18.61283895,3031.5,3031.4,0.001]
[1763422102041,16.98366664,3031.5,3031.4,0.001]
[1763422102470,3.895504,3030.4,3028.2,0.6582]
[1763422102779,8.98653255,3030.2,3028.2,0.6582]
[1763422102951,8.98653255,3030.2,3028.4,0.4725]
[1763422103151,9.91874938,3030.2,3028.4,0.4725]
[1763422103355,13.40874938,3030.2,3028.4,0.4725]
[1763422104244,9.91874938,3030.2,3028.4,0.4725]
[1763422104483,10.91562432,3030.2,3028.4,0.4725]
[1763422104848,17.51592432,3030.2,3028.4,0.4725]
[1763422105056,0.405504,3030.0,3028.2,0.1857]
[1763422105256,8.98653255,3029.7,3028.2,0.1857]
[1763422105456,8.98653255,3029.7,3027.5,0.6582]
[1763422105457,20.50320011,3029.7,3027.5,0.6582]
[1763422105669,22.86314389,3029.7,3027.5,0.6582]
[1763422105884,22.86314389,3029.7,3027.5,0.1857]
[1763422106071,22.86314389,3029.7,3027.3,0.1857]
[1763422106273,23.12908493,3029.7,3026.6,0.4735]
[1763422106475,24.38730338,3029.7,3026.6,0.4735]
[1763422106653,24.38730338,3029.7,3026.6,0.001]
[1763422106654,29.38730338,3029.7,3026.6,0.001]
[1763422106849,29.38730338,3029.7,3027.2,0.4725]
[1763422107045,28.26478494,3029.7,3027.3,0.4725]
[1763422108205,24.28063421,3029.7,3027.8,0.4725]
[1763422108404,23.97601044,3029.7,3027.8,0.4725]
[1763422108695,23.97601044,3029.7,3027.5,0.4725]
[1763422108852,23.97601044,3029.7,3027.7,0.4725]
[1763422109952,23.97601044,3029.7,3028.1,0.1857]
[1763422110171,22.75691362,3029.7,3028.1,0.6582]
[1763422110400,23.16241762,3029.7,3028.1,0.6582]
[1763422110593,18.16241762,3029.7,3028.1,0.6582]
[1763422110785,18.16241762,3029.7,3028.1,0.1857]
[1763422111183,18.16241762,3029.7,3028.1,0.6582]
[1763422111697,21.78515992,3029.7,3028.6,0.4725]
[1763422111993,22.69215256,3029.7,3028.6,0.4725]
[1763422112561,17.69215256,3029.7,3028.6,0.4725]
[1763422112761,17.69215256,3029.7,3028.4,0.4725]
[1763422113404,17.64215256,3029.7,3028.1,0.1857]
[1763422113560,17.64215256,3029.7,3028.3,0.4725]
[1763422113900,18.57436939,3029.7,3028.5,0.4725]
[1763422114085,17.64215256,3029.7,3029.1,0.1857]
[1763422114392,17.64215256,3029.7,3028.8,0.4725]
[1763422114600,17.64215256,3029.7,3029.1,0.1857]
[1763422114893,16.32965592,3029.7,3029.1,0.1857]
[1763422115098,23.08515992,3029.7,3029.1,0.6582]
[1763422115258,23.08515992,3029.7,3029.4,0.4725]
[1763422115259,16.32965592,3029.7,3029.4,0.4725]
[1763422115459,16.32965592,3029.7,3029.6,0.9236]
[1763422115460,6.6003,3029.7,3029.6,0.9236]
[1763422115679,7.50729264,3029.7,3029.6,0.001]
[1763422115874,15.58683255,3029.7,3029.6,0.001]
[1763422117115,16.05709761,3029.7,3029.6,0.001]
[1763422117308,17.19254231,3029.7,3029.6,0.001]
[1763422117463,16.78703831,3029.7,3029.6,0.4909]
[1763422117668,16.78703831,3029.7,3029.6,0.9833]
[1763422117669,6.6003,3029.7,3029.6,0.9833]
[1763422118075,7.005804,3029.7,3029.6,0.9833]
[1763422118482,7.50729264,3029.7,3029.6,0.9833]
[1763422119212,7.91279664,3029.7,3029.6,0.9833]
[1763422119391,7.50729264,3029.7,3029.6,0.9833]
[1763422120002,16.33756181,3029.7,3029.6,0.001]
[1763422120323,16.33756181,3029.7,3029.6,0.9833]
[1763422121470,16.33756181,3029.7,3029.6,0.001]
[1763422121909,8.6635259,3029.7,3029.6,0.9833]
[1763422122276,8.6635259,3029.7,3029.6,0.001]
[1763422122907,8.6635259,3029.7,3029.6,0.4909]
[1763422123420,8.6635259,3029.7,3029.6,0.001]
[1763422123574,8.6635259,3029.7,3029.6,0.4909]
[1763422124976,8.6635259,3029.7,3029.6,0.001]
[1763422127897,8.6635259,3029.7,3029.6,0.4909]
[1763422128707,8.6635259,3029.7,3029.6,0.001]
[1763422129008,8.6635259,3029.7,3029.6,0.9833]
[1763422129587,7.91279664,3029.7,3029.6,0.9833]
[1763422131019,7.50729264,3029.7,3029.6,0.9833]
[1763422131219,7.91279664,3029.7,3029.6,0.9833]
[1763422132783,6.91698329,3031.4,3029.6,0.9833]
[1763422132784,0.87068133,3031.1,3029.6,0.9833]
[1763422133122,0.90699264,3030.8,3030.0,0.4899]
[1763422133304,0.405504,3030.7,3030.0,0.4899]
[1763422133483,0.405504,3030.7,3030.1,0.1988]
[1763422133925,0.87576906,3030.7,3029.7,0.4924]
[1763422134095,1.31249664,3030.4,3029.7,0.6912]
[1763422134295,0.405504,3030.2,3029.7,0.6912]
[1763422134684,0.405504,3030.2,3029.8,0.4924]
[1763422134879,0.405504,3030.2,3030.1,0.4899]
[1763422135319,0.405504,3030.2,3029.7,0.1988]
[1763422135526,7.67403591,3030.1,3029.6,0.001]
[1763422135726,2.12045063,3030.0,3029.6,0.001]
[1763422136193,2.12045063,3030.0,3029.9,0.4899]
[1763422136919,1.21345799,3030.0,3029.9,0.4899]
[1763422137121,0.407504,3030.2,3029.9,0.4899]
[1763422137304,0.407504,3030.2,3029.6,0.001]
[1763422137817,0.405504,3030.0,3029.6,0.001]
[1763422138803,0.405504,3029.8,3029.6,0.001]
[1763422139124,0.405504,3029.8,3029.4,0.52037253]
[1763422139436,1.3772577,3030.1,3029.4,0.02797253]
[1763422139637,1.3772577,3030.1,3029.2,0.001]
[1763422139638,1.31249664,3029.6,3029.2,0.001]
[1763422140121,0.405504,3029.4,3029.2,0.001]
[1763422140424,0.405504,3029.3,3029.2,0.001]
[1763422140582,0.405504,3029.3,3029.2,0.4909]
[1763422140984,0.405504,3029.3,3029.2,0.001]
[1763422141211,0.405504,3029.3,3029.2,0.4909]
[1763422141524,0.17283305,3029.5,3029.2,0.4909]
[1763422141525,0.17283305,3029.5,3029.2,0.9833]
[1763422141695,0.57833705,3029.5,3029.4,0.4899]
[1763422142133,0.57833705,3029.5,3029.4,0.9823]
[1763422142421,0.17283305,3029.5,3029.4,0.9823]
[1763422145400,0.57833705,3029.5,3029.4,0.9823]
[1763422146349,0.17283305,3029.5,3029.4,0.9823]
[1763422148010,0.002,3030.2,3029.4,0.9823]
[1763422148249,0.002,3030.2,3030.1,0.6791]
[1763422149355,0.002,3030.2,3030.1,1.1685]
[1763422151354,0.002,3030.2,3030.1,0.64908645]
[1763422151646,0.002,3030.2,3030.1,0.83478645]
[1763422151846,0.002,3030.2,3030.1,0.34538645]
[1763422152251,0.002,3030.2,3030.1,0.15968645]
[1763422152548,0.002,3030.2,3030.1,0.64908645]
[1763422157726,0.002,3030.2,3030.1,0.15968645]
[1763422158745,0.002,3030.2,3030.1,0.61958645]
[1763422160735,6.35,3031.7,3030.1,1.84312386]
[1763422160961,6.35,3031.7,3030.5,0.4518]
[1763422161160,6.35,3031.7,3030.3,1.1905352]
[1763422161161,0.17271998,3031.1,3030.8,0.4518]
[1763422161559,0.17271998,3031.1,3030.8,0.9117]
[1763422161841,0.405504,3031.0,3030.8,0.9117]
[1763422162338,0.17271998,3031.1,3030.8,0.9117]
[1763422162535,0.405504,3031.0,3030.5,0.4599]
[1763422162741,0.405504,3031.0,3030.1,0.4599]
[1763422167276,0.405504,3030.7,3030.1,0.4599]
[1763422168247,0.405504,3030.6,3030.0,0.1857]
[1763422168452,0.405504,3030.6,3030.1,0.4599]
[1763422168687,0.30717742,3030.6,3030.1,0.4599]
[1763422168996,0.405504,3030.7,3030.1,0.4599]
[1763422169192,0.71268142,3030.7,3030.1,0.4599]
[1763422169486,0.30717742,3030.6,3030.1,0.4599]
[1763422169689,0.71268142,3030.8,3030.1,0.4599]
[1763422169864,0.30717742,3030.7,3030.1,0.4599]
[1763422170699,0.30717742,3030.7,3029.4,0.001]
[1763422170700,0.405504,3030.1,3029.4,0.001]
[1763422170854,0.405504,3029.9,3029.4,0.4609]
[1763422171483,0.405504,3029.7,3029.4,0.4609]
[1763422171798,0.307156,3029.7,3029.4,0.4609]
[1763422171962,0.405504,3030.1,3029.6,0.4518]
[1763422172291,0.405504,3029.9,3029.6,0.4518]
[1763422172492,0.4584,3030.4,3029.7,0.001]
[1763422172493,0.71266,3029.8,3029.7,0.001]
[1763422172964,0.405504,3029.8,3029.7,0.4528]
[1763422173155,0.71266,3029.8,3029.7,0.4528]
[1763422174757,0.405504,3029.8,3029.7,0.9127]
[1763422176101,0.307156,3029.9,3029.7,0.9127]
[1763422176308,0.307156,3030.2,3029.8,0.4807]
[1763422176479,0.307156,3030.1,3029.7,0.001]
[1763422176810,0.71266,3030.0,3029.8,0.4705]
[1763422176976,0.71266,3029.9,3029.8,0.4705]
[1763422177172,0.405504,3029.9,3029.8,0.4705]
[1763422177375,0.405504,3029.9,3029.8,0.9512]
[1763422177773,0.71266,3029.9,3029.8,0.9512]
[1763422178373,0.405504,3029.9,3029.8,0.9512]
[1763422179005,0.90699264,3030.3,3029.8,0.9512]
[1763422179006,0.307156,3030.2,3029.8,0.9512]
[1763422179176,0.405504,3030.0,3029.9,0.4705]
[1763422179508,0.307156,3030.0,3029.9,0.4705]
[1763422179710,0.405504,3030.1,3029.9,0.9512]
[1763422179711,0.71266,3030.1,3029.9,0.9512]
[1763422179905,0.405504,3030.2,3030.0,0.4807]
[1763422180109,0.30755942,3030.1,3030.0,0.4705]
[1763422180310,0.30755942,3030.1,3029.7,0.001]
[1763422180481,0.30755942,3030.1,3030.0,0.4807]
[1763422182473,0.30755942,3030.1,3029.8,0.4705]
[1763422182674,0.405504,3029.9,3029.7,0.001]
[1763422182908,0.30755942,3029.9,3029.7,0.4715]
[1763422183108,0.405504,3029.9,3029.8,0.4807]
[1763422183406,0.30755942,3029.9,3029.8,0.4807]
[1763422183573,0.71306342,3030.1,3029.8,0.9512]
[1763422183774,0.71306342,3030.1,3030.0,0.4807]
[1763422184204,0.71306342,3030.1,3030.0,0.9512]
[1763422184416,0.71306342,3030.1,3029.7,0.001]
[1763422184417,0.491604,3030.1,3029.7,0.001]
[1763422184586,0.30755942,3030.0,3029.8,0.4705]
[1763422184982,0.71306342,3030.0,3029.9,0.4807]
[1763422185613,0.71306342,3030.0,3029.7,0.001]
[1763422185837,0.899704,3029.8,3029.7,0.001]
[1763422186117,0.71306342,3029.8,3029.7,0.001]
[1763422186417,0.405504,3029.8,3029.7,0.001]
[1763422186940,0.71306342,3029.8,3029.7,0.001]
[1763422187283,0.405504,3029.8,3029.7,0.001]
[1763422187695,0.71306342,3029.8,3029.7,0.001]
[1763422187898,0.90699264,3030.3,3029.7,0.4817]
[1763422188192,1.07946959,3030.2,3029.7,0.4817]
[1763422188390,0.405504,3030.0,3029.7,0.4817]
[1763422188616,0.30747033,3029.9,3029.7,0.9522]
[1763422188823,0.405504,3029.9,3029.7,0.4715]
[1763422188990,0.71297433,3029.9,3029.8,0.9512]
[1763422189200,0.30747033,3029.9,3029.8,0.9512]
[1763422189496,0.405504,3029.9,3029.8,0.9512]
[1763422189695,0.405504,3030.1,3029.8,0.9512]
[1763422189917,0.71297433,3030.1,3029.9,0.4705]
[1763422190126,0.405504,3029.9,3029.8,0.4705]
[1763422190326,0.405504,3029.9,3029.8,0.9512]
[1763422190622,0.405504,3030.1,3029.8,0.9512]
[1763422190835,0.71291922,3030.1,3029.9,0.4807]
[1763422190996,0.71291922,3030.0,3029.9,0.4807]
[1763422191532,0.405504,3030.0,3029.9,0.4807]
[1763422191717,0.405504,3030.0,3029.7,0.001]
[1763422191718,0.405504,3029.9,3029.7,0.001]
[1763422191923,0.30741522,3029.8,3029.7,0.001]
[1763422192419,0.30741522,3029.8,3029.7,0.9522]
[1763422192619,0.80611522,3029.8,3029.7,0.001]
[1763422193126,0.80041522,3029.8,3029.7,0.001]
[1763422193328,1.20591922,3029.8,3029.7,0.001]
[1763422195915,1.26241922,3029.8,3029.7,0.001]
[1763422196257,5.89931305,3029.8,3029.7,0.001]
[1763422196400,0.405504,3029.3,3028.9,0.001]
[1763422196604,0.4942,3029.1,3028.9,0.001]
[1763422196799,0.30741522,3029.1,3028.9,0.001]
[1763422197100,0.21871922,3029.1,3029.0,0.9522]
[1763422197301,0.1998,3029.9,3029.0,0.9522]
[1763422197613,0.1998,3029.9,3029.1,0.7015131]
[1763422197795,0.1998,3029.9,3029.1,0.6685]
[1763422198620,0.463,3030.3,3029.2,0.4705]
[1763422198827,0.463,3030.3,3029.2,0.65650352]
[1763422199033,0.405504,3030.2,3029.2,0.65650352]
[1763422199406,0.405504,3030.1,3029.2,0.65650352]
[1763422199806,0.405504,3030.5,3029.3,0.4705]
[1763422200127,0.405504,3030.2,3029.3,0.67500387]
[1763422200512,0.405504,3030.2,3029.4,0.4705]
[1763422201139,0.002,3030.6,3029.4,0.4705]
[1763422201344,0.405504,3030.1,3029.4,0.4705]
[1763422202251,0.002,3030.6,3029.3,1.39503907]
[1763422202252,0.405504,3029.9,3029.3,1.39503907]
[1763422202543,0.405504,3029.9,3029.0,0.4715]
[1763422202544,0.660604,3029.4,3029.0,1.1915352]
[1763422202742,0.4942,3029.3,3029.0,0.001]
[1763422203061,0.605304,3029.4,3029.0,0.001]
[1763422203226,0.904204,3029.1,3029.0,0.001]
[1763422203735,0.405504,3029.1,3029.0,0.001]
[1763422204120,2.27419664,3029.1,3029.0,0.001]
[1763422204320,3.27043096,3029.1,3029.0,0.001]
[1763422204643,3.27043096,3029.1,3028.7,0.001]
[1763422204644,0.405504,3029.0,3028.7,0.001]
[1763422204829,0.922804,3029.0,3028.7,0.001]
[1763422205737,0.459804,3029.0,3028.7,0.001]
[1763422206152,0.931204,3029.0,3028.7,0.001]
[1763422206449,1.88383832,3029.0,3028.7,0.001]
[1763422209355,1.88583832,3029.0,3028.7,0.001]
[1763422210920,0.5277,3029.0,3028.7,0.001]
[1763422211523,0.933204,3029.0,3028.7,0.001]
[1763422212260,1.84019664,3029.0,3028.7,0.001]
[1763422214325,0.96329264,3029.0,3028.7,0.001]
[1763422214725,1.84019664,3029.0,3028.7,0.001]
[1763422215429,2.79303096,3029.0,3028.7,0.001]
[1763422215759,3.26329602,3029.0,3028.7,0.001]
[1763422216138,2.79303096,3029.0,3028.7,0.001]
[1763422217345,4.80249664,3028.8,3028.7,0.001]
[1763422217545,6.04052551,3028.8,3028.7,0.001]
[1763422217732,6.51192551,3028.8,3028.7,0.001]
[1763422217930,6.98219057,3028.8,3028.7,0.001]
[1763422218863,7.15500957,3028.8,3028.7,0.001]
[1763422220763,3.895504,3028.6,3028.5,0.001]
[1763422221077,3.895504,3028.6,3028.2,0.001]
[1763422221078,12.49064319,3028.3,3028.2,0.001]
[1763422221380,12.94874319,3028.3,3028.2,0.001]
[1763422221565,13.42994319,3028.3,3028.2,0.001]
[1763422222985,9.93994319,3028.3,3028.2,0.001]
[1763422223177,10.52210461,3028.3,3028.2,0.001]
[1763422224536,14.48236967,3028.3,3028.2,0.001]
[1763422225653,14.01210461,3028.3,3028.2,0.001]
[1763422226402,10.04090461,3028.3,3028.2,0.001]
[1763422226610,9.45874319,3028.3,3028.2,0.001]
[1763422227068,9.93994319,3028.3,3028.2,0.001]
[1763422227704,10.41020825,3028.3,3028.2,0.001]
[1763422228198,9.93994319,3028.3,3028.2,0.001]
[1763422229403,13.42994319,3028.3,3028.2,0.001]
[1763422229566,9.45874319,3028.3,3028.2,0.001]
[1763422229903,10.31152654,3028.3,3028.2,0.001]
[1763422230403,9.83032654,3028.3,3028.2,0.001]
[1763422230991,10.31152654,3028.3,3028.2,0.001]
[1763422231197,9.45874319,3028.3,3028.2,0.001]
[1763422232616,9.00064319,3028.3,3028.2,0.4667]
[1763422232908,9.00064319,3028.3,3028.2,0.001]
[1763422233494,9.49484319,3028.3,3028.2,0.001]
[1763422233700,10.92552751,3028.3,3028.2,0.001]
[1763422233883,14.88579257,3028.3,3028.2,0.001]
[1763422234784,11.39579257,3028.3,3028.2,0.001]
[1763422235003,10.92552751,3028.3,3028.2,0.001]
[1763422235211,14.41552751,3028.3,3028.2,0.001]
[1763422235510,14.88579257,3028.3,3028.2,0.001]
[1763422237332,6.71644602,3028.3,3028.2,0.001]
[1763422237529,10.91222751,3028.3,3028.2,0.001]
[1763422238335,14.87249257,3028.3,3028.2,0.001]
[1763422242132,15.24027767,3028.3,3028.2,0.001]
[1763422242833,14.87249257,3028.3,3028.2,0.001]
[1763422243493,14.87249257,3028.3,3028.1,0.001]
[1763422243494,4.80249664,3028.2,3028.1,0.001]
[1763422243697,0.405504,3027.8,3027.5,0.001]
[1763422243936,12.52684319,3027.6,3027.5,0.001]
[1763422244236,12.99710825,3027.6,3027.5,0.001]
[1763422244408,13.46500825,3027.6,3027.5,0.001]
[1763422244595,14.81150908,3027.6,3027.5,0.001]
[1763422245494,15.17929418,3027.6,3027.5,0.001]
[1763422245731,15.11613285,3027.6,3027.5,0.001]
[1763422246832,14.34124402,3027.6,3027.5,0.001]
[1763422247424,14.81150908,3027.6,3027.5,0.001]
[1763422249428,19.47027573,3027.6,3027.5,0.001]
[1763422249928,15.48391795,3027.6,3027.5,0.001]
[1763422250523,15.11613285,3027.6,3027.5,0.001]
[1763422251147,3.49,3027.0,3026.6,0.001]
[1763422251345,8.56585055,3026.7,3026.6,0.001]
[1763422251549,9.47724319,3026.7,3026.6,0.001]
[1763422252613,13.42664319,3026.7,3026.6,0.001]
[1763422252846,13.89690825,3026.7,3026.6,0.001]
[1763422253742,13.89690825,3026.7,3026.0,0.001]
[1763422253743,1.31249664,3026.6,3026.0,0.001]
[1763422253943,4.80249664,3026.4,3026.0,0.001]
[1763422254152,5.7407617,3026.4,3026.0,0.001]
[1763422254367,6.2086617,3026.4,3026.0,0.001]
[1763422254737,0.405504,3025.9,3024.9,0.5258]
[1763422254915,1.31249664,3025.1,3024.9,0.5258]
[1763422255342,1.31249664,3025.1,3025.0,0.4621]
[1763422255726,1.31249664,3025.1,3025.0,0.9268]
[1763422257747,1.31249664,3025.5,3025.0,0.9268]
[1763422257945,1.31249664,3025.5,3025.1,1.121]
[1763422258152,1.31249664,3025.5,3025.4,0.4621]
[1763422258920,0.1728906,3025.5,3025.4,0.9268]
[1763422260353,0.1728906,3025.5,3025.1,0.1942]
[1763422260540,0.1728906,3025.5,3025.4,0.4621]
[1763422260945,0.1728906,3025.5,3025.4,0.9268]
[1763422261143,0.405504,3025.4,3024.9,0.0611]
[1763422261343,0.405504,3025.0,3024.9,0.0611]
[1763422261653,0.405504,3025.0,3024.9,0.5258]
[1763422261829,0.405504,3025.0,3024.9,0.9879]
[1763422262477,0.1728906,3025.5,3024.9,0.9879]
[1763422262619,1.87465976,3026.6,3025.4,0.6563]
[1763422262620,1.40675976,3026.6,3025.4,0.6563]
[1763422262820,0.3895504,3026.9,3026.5,0.6563]
[1763422263130,0.17286854,3026.8,3026.6,0.4647]
[1763422263555,0.17286854,3026.8,3026.7,0.4621]
[1763422264043,0.17286854,3026.8,3026.5,0.1942]
[1763422264425,0.405504,3026.7,3026.5,0.1942]
[1763422264654,0.405504,3026.7,3026.5,0.6589]
[1763422264859,0.405504,3026.7,3026.6,0.4621]
[1763422265524,0.405504,3026.5,3025.4,0.1942]
[1763422265837,1.31249664,3026.1,3025.7,0.4647]
[1763422266042,1.31249664,3026.1,3026.0,0.4787]
[1763422266437,0.405504,3026.1,3026.0,0.9594]
[1763422266652,0.47026506,3026.7,3026.0,0.9594]
[1763422266653,0.90699264,3026.7,3026.0,0.9594]
[1763422266824,0.17287406,3027.1,3026.6,0.673]
[1763422267029,1.08777311,3027.1,3026.7,0.9594]
[1763422267240,0.405504,3027.0,3026.7,0.9594]
[1763422267657,1.08777311,3027.1,3026.7,0.4787]
[1763422267859,1.08777311,3027.1,3027.0,0.4787]
[1763422268161,0.17287406,3027.1,3027.0,0.4787]
[1763422268472,0.002,3027.6,3027.0,0.9594]
[1763422268629,0.002,3027.6,3027.0,0.4807]
[1763422268830,0.002,3027.6,3026.6,0.675]
[1763422268831,8.07112377,3027.6,3026.6,0.675]
[1763422269066,0.405504,3027.4,3026.6,0.675]
[1763422269250,0.405504,3027.4,3026.7,0.4807]
[1763422269451,0.90699264,3027.5,3027.3,0.4787]
[1763422269627,0.90699264,3027.5,3027.4,0.4787]
[1763422269826,1.80480428,3027.5,3026.7,0.4807]
[1763422270029,0.405504,3027.4,3026.7,0.4807]
[1763422270772,0.002,3027.6,3027.3,0.4787]
[1763422270979,0.002,3027.6,3026.7,0.4807]
[1763422271282,1.31249664,3027.4,3026.6,0.1943]
[1763422271437,1.31249664,3026.9,3026.6,0.1943]
[1763422272064,1.7827617,3026.9,3026.6,0.1943]
[1763422272360,1.31249664,3026.9,3026.6,0.1943]
[1763422273679,1.31249664,3026.9,3026.8,0.4787]
[1763422273841,0.93816204,3027.3,3026.8,0.4787]
[1763422273842,0.405504,3027.2,3026.8,0.4787]
[1763422274040,0.90699264,3027.4,3026.9,0.4807]
[1763422274273,0.17283956,3027.8,3027.3,0.4787]
[1763422274578,0.17283956,3027.8,3027.5,0.4787]
[1763422274738,0.17283956,3027.8,3027.5,0.9594]
[1763422275884,0.002,3028.0,3027.5,0.9594]
[1763422276090,0.002,3028.0,3027.5,0.4787]
[1763422276278,1.50719664,3027.9,3027.1,0.4807]
[1763422276478,1.50719664,3027.9,3026.7,0.4807]
[1763422276987,1.31249664,3027.9,3027.5,0.4787]
[1763422277193,0.405504,3027.7,3026.7,0.4807]
[1763422277365,0.405504,3027.5,3026.7,0.4807]
[1763422278069,0.405504,3027.4,3026.7,0.4807]
[1763422278293,0.84746278,3027.3,3026.7,0.4807]
[1763422279376,0.405504,3027.1,3026.7,0.4807]
[1763422279890,0.002,3027.6,3027.0,0.4827]
[1763422280060,0.002,3027.6,3026.7,0.4807]
[1763422280263,1.31249664,3027.4,3026.7,0.4807]
[1763422280469,0.405504,3027.2,3026.7,0.4807]
[1763422281764,0.405504,3027.2,3027.1,0.4827]
[1763422282311,0.405504,3027.2,3026.7,0.4807]
[1763422282865,0.405504,3027.2,3027.1,0.4827]
[1763422283409,0.407504,3027.2,3027.1,0.4827]
[1763422284486,0.407504,3027.2,3026.7,0.4807]
[1763422284660,0.63276987,3027.2,3027.1,0.4827]
[1763422285298,0.407504,3027.2,3027.1,0.4827]
[1763422285485,0.002,3027.2,3027.1,0.9539]
[1763422287311,0.002,3027.2,3026.6,0.1943]
[1763422287312,0.405504,3027.1,3026.6,0.1943]
[1763422287602,0.405504,3027.1,3024.2,5.96963419]
[1763422287603,0.405504,3026.6,3025.6,0.4712]
[1763422287788,0.3726,3026.7,3025.6,0.4712]
[1763422287789,1.31249664,3026.4,3025.6,0.4712]
[1763422287966,1.03320855,3026.3,3025.6,0.4712]
[1763422288170,0.405504,3026.2,3024.9,0.0621]
[1763422288389,0.405504,3026.2,3025.2,0.4712]
[1763422288697,0.405504,3026.2,3025.1,0.1942]
[1763422288698,1.31249664,3025.8,3025.1,0.1942]
[1763422289113,1.31249664,3025.8,3025.1,0.6654]
[1763422289316,0.405504,3026.0,3025.7,0.4827]
[1763422289519,0.405504,3026.0,3025.5,0.4722]
[1763422289830,0.405504,3026.0,3025.9,0.4827]
[1763422290041,0.17287457,3026.1,3025.9,0.4827]
[1763422290323,0.17287457,3026.1,3026.0,0.9539]
[1763422290535,0.17287457,3026.1,3026.0,0.4827]
[1763422290825,0.405504,3026.0,3025.6,0.4712]
[1763422291227,0.405504,3026.0,3025.9,0.4827]
[1763422292335,0.405504,3026.0,3025.9,0.9539]
[1763422292831,0.405504,3026.0,3025.5,0.001]
[1763422293040,0.405504,3026.0,3025.5,0.4722]
[1763422293420,0.1998,3025.9,3025.5,0.001]
[1763422294093,0.405504,3026.0,3025.5,0.001]
[1763422294293,0.405504,3026.0,3025.9,0.4827]
[1763422294534,0.405504,3026.0,3025.5,0.4722]
[1763422294708,0.405504,3026.0,3025.5,0.001]
[1763422294917,0.405504,3026.0,3025.9,0.4827]
[1763422295429,0.17287457,3026.1,3025.9,0.4827]
[1763422296327,0.405504,3026.0,3025.5,0.001]
[1763422296740,0.405504,3026.0,3025.5,0.4599]
[1763422296898,0.405504,3025.8,3025.5,0.001]
[1763422297419,0.405504,3026.0,3025.5,0.001]
[1763422298498,0.405504,3026.0,3025.9,0.4678]
[1763422299031,0.17287457,3026.1,3025.9,0.9267]
[1763422299328,0.17287457,3026.1,3026.0,0.9267]
[1763422299529,0.17287457,3026.1,3026.0,1.13842352]
[1763422299741,0.002,3027.2,3026.0,2.32895872]
[1763422299911,0.002,3027.2,3027.1,0.6568]
[1763422300592,0.17516092,3027.2,3027.1,0.6568]
[1763422301334,0.17516092,3027.2,3026.0,0.21172352]
[1763422301335,0.405504,3027.1,3026.3,1.64631896]